[Event "Titled Tuesday Blitz March 29 Early 2022"]
[White "Sanal, Vahap"]
[Black "Zakhartsov, Vladimir"]
[WhiteFideId "6300545"]
[BlackFideId "4145097"]
[WhiteElo "2603"]
[BlackElo "2433"]
[Result "1-0"]
[Round "04"]
[TimeControl "180+1"]
[Date "2022.03.29"]
[WhiteClock "0:02:06"]
[BlackClock "0:01:28"]

1. e4 {[%clk 0:03:00]}  c5 {[%clk 0:02:58]} 2. Nc3 {[%clk 0:03:00]}  Nc6 {[%clk 0:02:55]} 3. Bb5 {[%clk 0:02:59]}  g6 {[%clk 0:02:53]} 4. Bxc6 {[%clk 0:02:58]}  dxc6 {[%clk 0:02:53]} 5. d3 {[%clk 0:02:59]}  Bg7 {[%clk 0:02:52]} 6. f4 {[%clk 0:03:00]}  Nf6 {[%clk 0:02:49]} 7. Nf3 {[%clk 0:03:00]}  Bg4 {[%clk 0:02:48]} 8. O-O {[%clk 0:02:57]}  O-O {[%clk 0:02:48]} 9. h3 {[%clk 0:02:54]}  Bxf3 {[%clk 0:02:48]} 10. Qxf3 {[%clk 0:02:55]}  Nd7 {[%clk 0:02:47]} 11. Kh1 {[%clk 0:02:48]}  a5 {[%clk 0:02:46]} 12. Bd2 {[%clk 0:02:47]}  a4 {[%clk 0:02:46]} 13. Rae1 {[%clk 0:02:47]}  b5 {[%clk 0:02:44]} 14. e5 {[%clk 0:02:43]}  Rc8 {[%clk 0:02:31]} 15. e6 {[%clk 0:02:39]}  fxe6 {[%clk 0:02:28]} 16. Rxe6 {[%clk 0:02:39]}  Rf6 {[%clk 0:02:19]} 17. Rfe1 {[%clk 0:02:37]}  Bf8 {[%clk 0:02:03]} 18. Qg4 {[%clk 0:02:28]}  Nb6 {[%clk 0:01:54]} 19. Ne4 {[%clk 0:02:16]}  Rf5 {[%clk 0:01:48]} 20. Rxg6+ {[%clk 0:02:14]}  hxg6 {[%clk 0:01:47]} 21. Qxg6+ {[%clk 0:02:15]}  Kh8 {[%clk 0:01:48]} 22. Qxf5 {[%clk 0:02:14]}  Qd5 {[%clk 0:01:47]} 23. Qg6 {[%clk 0:02:08]}  Qg8 {[%clk 0:01:28]} 24. Bc3+ {[%clk 0:02:07]}  Bg7 {[%clk 0:01:27]} 25. Ng5 {[%clk 0:02:06]}  Qh7 {[%clk 0:01:28]} 26. Qxh7# {[%clk 0:02:06]} 1-0


[Site "https://www.chess.com"]

[Event "Titled Tuesday Blitz March 29 Early 2022"]
[White "Sanchez, Robert"]
[Black "Cannon, David"]
[WhiteFideId "2034360"]
[BlackFideId "3213110"]
[WhiteElo "2261"]
[BlackElo "1901"]
[Result "1-0"]
[Round "04"]
[TimeControl "180+1"]
[Date "2022.03.30"]
[WhiteClock "0:01:19"]
[BlackClock "0:00:48"]

1. e4 {[%clk 0:03:00]}  c5 {[%clk 0:02:58]} 2. Nf3 {[%clk 0:03:00]}  e6 {[%clk 0:02:57]} 3. d4 {[%clk 0:03:00]}  cxd4 {[%clk 0:02:58]} 4. Nxd4 {[%clk 0:03:01]}  Nf6 {[%clk 0:02:56]} 5. Nc3 {[%clk 0:03:01]}  d6 {[%clk 0:02:56]} 6. Be3 {[%clk 0:03:01]}  a6 {[%clk 0:02:56]} 7. f3 {[%clk 0:03:01]}  b5 {[%clk 0:02:56]} 8. Qd2 {[%clk 0:03:02]}  b4 {[%clk 0:02:56]} 9. Nce2 {[%clk 0:03:01]}  Nbd7 {[%clk 0:02:55]} 10. O-O-O {[%clk 0:03:01]}  d5 {[%clk 0:02:56]} 11. Ng3 {[%clk 0:02:55]}  Bb7 {[%clk 0:02:54]} 12. Kb1 {[%clk 0:02:31]}  dxe4 {[%clk 0:02:49]} 13. fxe4 {[%clk 0:02:30]}  Nxe4 {[%clk 0:02:48]} 14. Nxe4 {[%clk 0:02:30]}  Bxe4 {[%clk 0:02:49]} 15. Bd3 {[%clk 0:02:30]}  Bb7 {[%clk 0:02:47]} 16. Rhe1 {[%clk 0:02:26]}  Be7 {[%clk 0:02:43]} 17. Bc4 {[%clk 0:02:00]}  Nb6 {[%clk 0:02:33]} 18. Bb3 {[%clk 0:01:55]}  a5 {[%clk 0:02:32]} 19. Qe2 {[%clk 0:01:53]}  Ba6 {[%clk 0:02:16]} 20. Qg4 {[%clk 0:01:50]}  Nd5 {[%clk 0:01:20]} 21. Nxe6 {[%clk 0:01:42]}  fxe6 {[%clk 0:01:15]} 22. Qxe6 {[%clk 0:01:42]}  Qd6 {[%clk 0:01:03]} 23. Qxd6 {[%clk 0:01:37]}  Bxd6 {[%clk 0:01:03]} 24. Bxd5 {[%clk 0:01:37]}  Rc8 {[%clk 0:00:55]} 25. Bf4+ {[%clk 0:01:27]}  Kd7 {[%clk 0:00:48]} 26. Be6+ {[%clk 0:01:19]} 1-0


[Site "https://www.chess.com"]

[Event "Titled Tuesday Blitz March 29 Early 2022"]
[White "Seo, Jung Min"]
[Black "Manukyan, Sargis A."]
[WhiteFideId "1734687"]
[BlackFideId "13303970"]
[WhiteElo "2704"]
[BlackElo "2532"]
[Result "1-0"]
[Round "04"]
[TimeControl "180+1"]
[Date "2022.03.30"]
[WhiteClock "0:01:44"]
[BlackClock "0:01:10"]

1. d4 {[%clk 0:03:00]}  d5 {[%clk 0:02:59]} 2. c4 {[%clk 0:03:01]}  e6 {[%clk 0:03:00]} 3. Nf3 {[%clk 0:03:01]}  Nf6 {[%clk 0:03:01]} 4. Nc3 {[%clk 0:03:01]}  Be7 {[%clk 0:03:01]} 5. Bf4 {[%clk 0:03:00]}  c5 {[%clk 0:02:58]} 6. cxd5 {[%clk 0:02:58]}  Nxd5 {[%clk 0:02:58]} 7. Nxd5 {[%clk 0:02:50]}  Qxd5 {[%clk 0:02:59]} 8. e3 {[%clk 0:02:50]}  Nc6 {[%clk 0:02:53]} 9. Bb5 {[%clk 0:02:45]}  cxd4 {[%clk 0:02:47]} 10. Bxc6+ {[%clk 0:02:42]}  Qxc6 {[%clk 0:02:45]} 11. Qxd4 {[%clk 0:02:42]}  O-O {[%clk 0:02:36]} 12. O-O {[%clk 0:02:41]}  Rd8 {[%clk 0:02:33]} 13. Qe5 {[%clk 0:02:35]}  Bf6 {[%clk 0:02:29]} 14. Qh5 {[%clk 0:02:35]}  g6 {[%clk 0:02:23]} 15. Qh6 {[%clk 0:02:33]}  Bxb2 {[%clk 0:02:11]} 16. Ng5 {[%clk 0:02:30]}  Bg7 {[%clk 0:02:07]} 17. Qxh7+ {[%clk 0:02:30]}  Kf8 {[%clk 0:02:08]} 18. Be5 {[%clk 0:02:28]}  f6 {[%clk 0:02:01]} 19. Bxf6 {[%clk 0:02:27]}  Qd7 {[%clk 0:01:52]} 20. Rad1 {[%clk 0:02:16]}  Bxf6 {[%clk 0:01:48]} 21. Rxd7 {[%clk 0:02:16]}  Rxd7 {[%clk 0:01:48]} 22. Nxe6+ {[%clk 0:02:14]}  Ke8 {[%clk 0:01:46]} 23. Qxg6+ {[%clk 0:02:11]}  Ke7 {[%clk 0:01:43]} 24. Nd4 {[%clk 0:02:11]}  Rd5 {[%clk 0:01:40]} 25. Qe4+ {[%clk 0:02:08]}  Kd6 {[%clk 0:01:38]} 26. Rd1 {[%clk 0:02:04]}  Bxd4 {[%clk 0:01:24]} 27. Rxd4 {[%clk 0:02:02]}  Be6 {[%clk 0:01:23]} 28. Qf4+ {[%clk 0:02:00]}  Kc6 {[%clk 0:01:23]} 29. h4 {[%clk 0:01:59]}  Rxd4 {[%clk 0:01:21]} 30. Qxd4 {[%clk 0:01:58]}  b5 {[%clk 0:01:20]} 31. a3 {[%clk 0:01:52]}  a5 {[%clk 0:01:19]} 32. h5 {[%clk 0:01:52]}  b4 {[%clk 0:01:19]} 33. axb4 {[%clk 0:01:47]}  a4 {[%clk 0:01:20]} 34. h6 {[%clk 0:01:46]}  a3 {[%clk 0:01:20]} 35. h7 {[%clk 0:01:47]}  a2 {[%clk 0:01:16]} 36. h8=Q {[%clk 0:01:45]}  a1=Q+ {[%clk 0:01:10]} 37. Qxa1 {[%clk 0:01:44]} 1-0


[Site "https://www.chess.com"]

[Event "Titled Tuesday Blitz March 29 Early 2022"]
[White "Shuvalov, Evgenij"]
[Black "Gurevich, Dmitry"]
[WhiteFideId "4187237"]
[BlackFideId "2000407"]
[WhiteElo "2151"]
[BlackElo "2506"]
[Result "1/2-1/2"]
[Round "04"]
[TimeControl "180+1"]
[Date "2022.03.30"]
[WhiteClock "0:00:32"]
[BlackClock "0:00:28"]

1. Nf3 {[%clk 0:03:00]}  Nf6 {[%clk 0:02:59]} 2. c4 {[%clk 0:03:00]}  e6 {[%clk 0:02:58]} 3. g3 {[%clk 0:03:00]}  d5 {[%clk 0:02:58]} 4. Bg2 {[%clk 0:03:00]}  Be7 {[%clk 0:02:58]} 5. O-O {[%clk 0:03:01]}  O-O {[%clk 0:02:59]} 6. b3 {[%clk 0:03:01]}  c5 {[%clk 0:02:57]} 7. e3 {[%clk 0:03:01]}  Nc6 {[%clk 0:02:56]} 8. Qe2 {[%clk 0:02:58]}  d4 {[%clk 0:02:54]} 9. d3 {[%clk 0:02:55]}  e5 {[%clk 0:02:53]} 10. exd4 {[%clk 0:02:54]}  exd4 {[%clk 0:02:53]} 11. Bf4 {[%clk 0:02:48]}  h6 {[%clk 0:02:51]} 12. Ne5 {[%clk 0:02:47]}  Nxe5 {[%clk 0:02:50]} 13. Bxe5 {[%clk 0:02:39]}  Bd6 {[%clk 0:02:45]} 14. Bxf6 {[%clk 0:02:34]}  Qxf6 {[%clk 0:02:44]} 15. Nd2 {[%clk 0:02:33]}  Qd8 {[%clk 0:02:42]} 16. a3 {[%clk 0:02:28]}  Re8 {[%clk 0:02:41]} 17. Qf3 {[%clk 0:02:27]}  a5 {[%clk 0:02:41]} 18. Rfe1 {[%clk 0:02:23]}  Rxe1+ {[%clk 0:02:32]} 19. Rxe1 {[%clk 0:02:23]}  Ra7 {[%clk 0:02:25]} 20. a4 {[%clk 0:02:22]}  b6 {[%clk 0:02:24]} 21. Nb1 {[%clk 0:02:19]}  Re7 {[%clk 0:02:13]} 22. Rxe7 {[%clk 0:02:17]}  Qxe7 {[%clk 0:02:09]} 23. Qe4 {[%clk 0:02:17]}  Qxe4 {[%clk 0:02:07]} 24. Bxe4 {[%clk 0:02:17]}  f5 {[%clk 0:02:07]} 25. Bd5+ {[%clk 0:02:16]}  Kf8 {[%clk 0:02:07]} 26. Kf1 {[%clk 0:02:11]}  g5 {[%clk 0:02:06]} 27. Ke2 {[%clk 0:02:10]}  Kg7 {[%clk 0:02:02]} 28. Nd2 {[%clk 0:02:04]}  Kf6 {[%clk 0:02:01]} 29. Nf3 {[%clk 0:02:00]}  g4 {[%clk 0:02:02]} 30. Nh4 {[%clk 0:01:59]}  f4 {[%clk 0:01:55]} 31. Be4 {[%clk 0:01:53]}  Kg5 {[%clk 0:01:46]} 32. Ke1 {[%clk 0:01:45]}  h5 {[%clk 0:01:38]} 33. Kd2 {[%clk 0:01:35]}  Bd7 {[%clk 0:01:32]} 34. Ke1 {[%clk 0:01:34]}  f3 {[%clk 0:01:11]} 35. Kd2 {[%clk 0:01:26]}  Bf8 {[%clk 0:01:08]} 36. Kd1 {[%clk 0:01:20]}  Kf6 {[%clk 0:01:05]} 37. Ng6 {[%clk 0:01:14]}  Bh6 {[%clk 0:01:02]} 38. Nh4 {[%clk 0:00:46]}  Bg5 {[%clk 0:01:01]} 39. Ke1 {[%clk 0:00:45]}  Bxh4 {[%clk 0:01:00]} 40. gxh4 {[%clk 0:00:45]}  Ke5 {[%clk 0:00:59]} 41. Bg6 {[%clk 0:00:42]}  Kf6 {[%clk 0:00:49]} 42. Be4 {[%clk 0:00:40]}  Be8 {[%clk 0:00:46]} 43. Kd2 {[%clk 0:00:38]}  Ke5 {[%clk 0:00:46]} 44. Ke1 {[%clk 0:00:35]}  Kf4 {[%clk 0:00:46]} 45. Kd2 {[%clk 0:00:33]}  Bf7 {[%clk 0:00:41]} 46. Ke1 {[%clk 0:00:32]}  Ke5 {[%clk 0:00:39]} 47. Kd2 {[%clk 0:00:32]}  Kf6 {[%clk 0:00:39]} 48. Ke1 {[%clk 0:00:32]}  Bg6 {[%clk 0:00:39]} 49. Bxg6 {[%clk 0:00:31]}  Kxg6 {[%clk 0:00:39]} 50. Kf1 {[%clk 0:00:31]}  Kf5 {[%clk 0:00:38]} 51. Ke1 {[%clk 0:00:31]}  Kf4 {[%clk 0:00:38]} 52. Kf1 {[%clk 0:00:31]}  Kf5 {[%clk 0:00:28]} 53. Ke1 {[%clk 0:00:31]}  Kf4 {[%clk 0:00:28]} 54. Kf1 {[%clk 0:00:32]}  Kf5 {[%clk 0:00:28]} 1/2-1/2


[Site "https://www.chess.com"]

[Event "Titled Tuesday Blitz March 29 Early 2022"]
[White "Shvedova, Alexandra"]
[Black "Sergienko, Sergey"]
[WhiteFideId "54154782"]
[BlackFideId "4115791"]
[WhiteElo "1912"]
[BlackElo "2193"]
[Result "0-1"]
[Round "04"]
[TimeControl "180+1"]
[Date "2022.03.30"]
[WhiteClock "0:00:04"]
[BlackClock "0:00:07"]

1. e4 {[%clk 0:03:00]}  c5 {[%clk 0:02:59]} 2. Ne2 {[%clk 0:03:01]}  Nc6 {[%clk 0:02:57]} 3. d4 {[%clk 0:03:00]}  cxd4 {[%clk 0:02:51]} 4. Nxd4 {[%clk 0:03:01]}  d6 {[%clk 0:02:51]} 5. Nc3 {[%clk 0:03:01]}  e6 {[%clk 0:02:50]} 6. g4 {[%clk 0:02:49]}  Nge7 {[%clk 0:02:44]} 7. Bg2 {[%clk 0:02:40]}  Nxd4 {[%clk 0:02:43]} 8. Qxd4 {[%clk 0:02:39]}  Nc6 {[%clk 0:02:44]} 9. Qd1 {[%clk 0:02:35]}  Be7 {[%clk 0:02:31]} 10. Be3 {[%clk 0:02:35]}  Bd7 {[%clk 0:02:25]} 11. Qe2 {[%clk 0:02:26]}  O-O {[%clk 0:01:53]} 12. O-O-O {[%clk 0:02:11]}  Rc8 {[%clk 0:01:43]} 13. h4 {[%clk 0:01:51]}  Ne5 {[%clk 0:01:27]} 14. f4 {[%clk 0:01:36]}  Nc4 {[%clk 0:01:26]} 15. g5 {[%clk 0:01:11]}  Qa5 {[%clk 0:01:04]} 16. Bd2 {[%clk 0:00:50]}  Qb6 {[%clk 0:00:51]} 17. b3 {[%clk 0:00:43]}  d5 {[%clk 0:00:45]} 18. exd5 {[%clk 0:00:34]}  Ba3+ {[%clk 0:00:29]} 19. Kb1 {[%clk 0:00:34]}  Nxd2+ {[%clk 0:00:28]} 20. Qxd2 {[%clk 0:00:34]}  Bb4 {[%clk 0:00:27]} 21. Rh3 {[%clk 0:00:34]}  Qa5 {[%clk 0:00:23]} 22. Kb2 {[%clk 0:00:33]}  Rc5 {[%clk 0:00:15]} 23. Qd4 {[%clk 0:00:29]}  Rfc8 {[%clk 0:00:14]} 24. Rdd3 {[%clk 0:00:26]}  Bb5 {[%clk 0:00:14]} 25. dxe6 {[%clk 0:00:18]}  Bxd3 {[%clk 0:00:12]} 26. exf7+ {[%clk 0:00:18]}  Kxf7 {[%clk 0:00:10]} 27. Qd7+ {[%clk 0:00:11]}  Kg8 {[%clk 0:00:09]} 28. Rxd3 {[%clk 0:00:07]}  Bxc3+ {[%clk 0:00:09]} 29. Kb1 {[%clk 0:00:07]}  Qa3 {[%clk 0:00:08]} 30. Qe6+ {[%clk 0:00:04]}  Kh8 {[%clk 0:00:08]} 31. Rxc3 {[%clk 0:00:04]}  Rxc3 {[%clk 0:00:08]} 32. g6 {[%clk 0:00:04]}  Rxc2 {[%clk 0:00:07]} 0-1


[Site "https://www.chess.com"]

[Event "Titled Tuesday Blitz March 29 Early 2022"]
[White "Simonovic, Miroslav"]
[Black "Tymrakiewicz, Rafal"]
[WhiteFideId "919152"]
[BlackFideId "1108832"]
[WhiteElo "2043"]
[BlackElo "2205"]
[Result "0-1"]
[Round "04"]
[TimeControl "180+1"]
[Date "2022.03.30"]
[WhiteClock "0:00:04"]
[BlackClock "0:00:18"]

1. d4 {[%clk 0:03:00]}  Nf6 {[%clk 0:02:59]} 2. Bg5 {[%clk 0:03:01]}  c5 {[%clk 0:02:58]} 3. Bxf6 {[%clk 0:03:01]}  gxf6 {[%clk 0:02:58]} 4. c3 {[%clk 0:03:01]}  cxd4 {[%clk 0:02:57]} 5. cxd4 {[%clk 0:03:02]}  Qb6 {[%clk 0:02:56]} 6. Qc2 {[%clk 0:03:02]}  Nc6 {[%clk 0:02:54]} 7. e3 {[%clk 0:03:03]}  d5 {[%clk 0:02:49]} 8. Nf3 {[%clk 0:02:54]}  Bf5 {[%clk 0:02:41]} 9. Qxf5 {[%clk 0:02:54]}  Qxb2 {[%clk 0:02:41]} 10. Qxd5 {[%clk 0:02:54]}  e6 {[%clk 0:02:27]} 11. Qb3 {[%clk 0:02:51]}  Bb4+ {[%clk 0:02:14]} 12. Nfd2 {[%clk 0:02:50]}  Bxd2+ {[%clk 0:02:10]} 13. Nxd2 {[%clk 0:02:43]}  Qxa1+ {[%clk 0:02:10]} 14. Nb1 {[%clk 0:02:39]}  O-O {[%clk 0:01:45]} 15. Bd3 {[%clk 0:02:04]}  Na5 {[%clk 0:01:22]} 16. Qa3 {[%clk 0:01:22]}  b6 {[%clk 0:01:21]} 17. O-O {[%clk 0:01:20]}  Rac8 {[%clk 0:01:22]} 18. f4 {[%clk 0:00:17]}  f5 {[%clk 0:01:19]} 19. g4 {[%clk 0:00:16]}  Nc4 {[%clk 0:00:58]} 20. Qb3 {[%clk 0:00:16]}  Nxe3 {[%clk 0:00:55]} 21. Re1 {[%clk 0:00:14]}  Nxg4 {[%clk 0:00:51]} 22. h3 {[%clk 0:00:12]}  Nf6 {[%clk 0:00:48]} 23. Kf1 {[%clk 0:00:12]}  Nd5 {[%clk 0:00:47]} 24. Bxf5 {[%clk 0:00:10]}  exf5 {[%clk 0:00:32]} 25. Qxd5 {[%clk 0:00:10]}  Rfe8 {[%clk 0:00:26]} 26. Qxf5 {[%clk 0:00:06]}  Rxe1+ {[%clk 0:00:24]} 27. Kf2 {[%clk 0:00:05]}  Qb2+ {[%clk 0:00:19]} 28. Kxe1 {[%clk 0:00:04]}  Rc1# {[%clk 0:00:18]} 0-1


[Site "https://www.chess.com"]

[Event "Titled Tuesday Blitz March 29 Early 2022"]
[White "Tasev, Dejan"]
[Black "Thomas, Anysia"]
[WhiteFideId "936618"]
[BlackFideId "670472"]
[WhiteElo "2624"]
[BlackElo "2262"]
[Result "1-0"]
[Round "04"]
[TimeControl "180+1"]
[Date "2022.03.30"]
[WhiteClock "0:01:06"]
[BlackClock "0:00:04"]

1. e4 {[%clk 0:02:59]}  c5 {[%clk 0:02:59]} 2. Nf3 {[%clk 0:02:58]}  g6 {[%clk 0:02:59]} 3. Nc3 {[%clk 0:02:58]}  Nc6 {[%clk 0:02:59]} 4. d4 {[%clk 0:02:58]}  cxd4 {[%clk 0:02:59]} 5. Nxd4 {[%clk 0:02:59]}  Bg7 {[%clk 0:03:00]} 6. Be3 {[%clk 0:02:59]}  Nf6 {[%clk 0:03:00]} 7. Bc4 {[%clk 0:02:59]}  O-O {[%clk 0:03:00]} 8. Bb3 {[%clk 0:02:58]}  Qa5 {[%clk 0:02:55]} 9. O-O {[%clk 0:02:56]}  d6 {[%clk 0:02:53]} 10. h3 {[%clk 0:02:56]}  Bd7 {[%clk 0:02:48]} 11. f4 {[%clk 0:02:55]}  e5 {[%clk 0:02:35]} 12. Nxc6 {[%clk 0:02:44]}  Bxc6 {[%clk 0:02:35]} 13. Qd3 {[%clk 0:02:43]}  Rae8 {[%clk 0:01:59]} 14. f5 {[%clk 0:02:33]}  d5 {[%clk 0:01:01]} 15. fxg6 {[%clk 0:02:19]}  hxg6 {[%clk 0:00:57]} 16. exd5 {[%clk 0:02:12]}  e4 {[%clk 0:00:54]} 17. Qc4 {[%clk 0:01:48]}  Bd7 {[%clk 0:00:18]} 18. Rad1 {[%clk 0:01:45]}  Rc8 {[%clk 0:00:16]} 19. Qe2 {[%clk 0:01:45]}  a6 {[%clk 0:00:14]} 20. Bd4 {[%clk 0:01:37]}  Nh5 {[%clk 0:00:12]} 21. Bxg7 {[%clk 0:01:34]}  Kxg7 {[%clk 0:00:10]} 22. Nxe4 {[%clk 0:01:29]}  Rfe8 {[%clk 0:00:07]} 23. Qf3 {[%clk 0:01:28]}  Bf5 {[%clk 0:00:04]} 24. Ng3 {[%clk 0:01:06]} 1-0


[Site "https://www.chess.com"]

[Event "Titled Tuesday Blitz March 29 Early 2022"]
[White "Tregubov, Pavel V."]
[Black "Zaksaite, Salomeja"]
[WhiteFideId "4115341"]
[BlackFideId "12801496"]
[WhiteElo "2637"]
[BlackElo "2268"]
[Result "0-1"]
[Round "04"]
[TimeControl "180+1"]
[Date "2022.03.30"]
[WhiteClock "0:01:55"]
[BlackClock "0:01:05"]

1. e4 {[%clk 0:03:00]}  c5 {[%clk 0:02:59]} 2. Nf3 {[%clk 0:03:00]}  e6 {[%clk 0:02:59]} 3. c3 {[%clk 0:03:00]}  Nf6 {[%clk 0:02:58]} 4. e5 {[%clk 0:03:00]}  Nd5 {[%clk 0:02:59]} 5. d4 {[%clk 0:03:00]}  cxd4 {[%clk 0:02:59]} 6. cxd4 {[%clk 0:03:01]}  d6 {[%clk 0:02:59]} 7. Bc4 {[%clk 0:02:55]}  Nc6 {[%clk 0:02:57]} 8. O-O {[%clk 0:02:55]}  Be7 {[%clk 0:02:53]} 9. Qe2 {[%clk 0:02:50]}  dxe5 {[%clk 0:02:50]} 10. dxe5 {[%clk 0:02:49]}  O-O {[%clk 0:02:50]} 11. Rd1 {[%clk 0:02:49]}  Qa5 {[%clk 0:02:21]} 12. Bd2 {[%clk 0:02:41]}  Qb6 {[%clk 0:02:21]} 13. Nc3 {[%clk 0:02:40]}  Nxc3 {[%clk 0:02:06]} 14. Bxc3 {[%clk 0:02:40]}  Rd8 {[%clk 0:02:02]} 15. Rxd8+ {[%clk 0:02:30]}  Bxd8 {[%clk 0:02:01]} 16. Rd1 {[%clk 0:02:30]}  Be7 {[%clk 0:02:00]} 17. Qe4 {[%clk 0:02:28]}  Qc7 {[%clk 0:01:51]} 18. Bd3 {[%clk 0:02:18]}  g6 {[%clk 0:01:51]} 19. h4 {[%clk 0:02:14]}  Bd7 {[%clk 0:01:50]} 20. h5 {[%clk 0:02:14]}  Be8 {[%clk 0:01:50]} 21. Qf4 {[%clk 0:02:11]}  Rd8 {[%clk 0:01:43]} 22. Bc2 {[%clk 0:01:58]}  Rxd1+ {[%clk 0:01:42]} 23. Bxd1 {[%clk 0:01:58]}  a5 {[%clk 0:01:08]} 24. a3 {[%clk 0:01:55]}  b5 {[%clk 0:01:05]} 0-1


[Site "https://www.chess.com"]

[Event "Titled Tuesday Blitz March 29 Early 2022"]
[White "Tsydypov, Zhamsaran"]
[Black "Barrientos, Sergio E"]
[WhiteFideId "4108566"]
[BlackFideId "4401824"]
[WhiteElo "2614"]
[BlackElo "2397"]
[Result "1-0"]
[Round "04"]
[TimeControl "180+1"]
[Date "2022.03.29"]
[WhiteClock "0:00:35"]
[BlackClock "0:00:08"]

1. e4 {[%clk 0:03:00]}  c5 {[%clk 0:02:54]} 2. Nf3 {[%clk 0:03:00]}  e6 {[%clk 0:02:53]} 3. d4 {[%clk 0:02:58]}  cxd4 {[%clk 0:02:53]} 4. Nxd4 {[%clk 0:02:59]}  a6 {[%clk 0:02:52]} 5. c4 {[%clk 0:02:54]}  Nf6 {[%clk 0:02:52]} 6. Nc3 {[%clk 0:02:54]}  Bb4 {[%clk 0:02:52]} 7. e5 {[%clk 0:02:51]}  Ne4 {[%clk 0:02:51]} 8. Qg4 {[%clk 0:02:50]}  Nxc3 {[%clk 0:02:41]} 9. a3 {[%clk 0:02:36]}  Bf8 {[%clk 0:02:40]} 10. bxc3 {[%clk 0:02:34]}  d6 {[%clk 0:02:40]} 11. Bf4 {[%clk 0:02:32]}  Qa5 {[%clk 0:02:35]} 12. Qg3 {[%clk 0:02:29]}  g5 {[%clk 0:02:20]} 13. Bxg5 {[%clk 0:02:19]}  Rg8 {[%clk 0:02:20]} 14. Nb3 {[%clk 0:02:00]}  Qb6 {[%clk 0:02:05]} 15. Nd2 {[%clk 0:01:59]}  dxe5 {[%clk 0:01:51]} 16. Ne4 {[%clk 0:01:57]}  Nd7 {[%clk 0:01:47]} 17. Rd1 {[%clk 0:01:50]}  Be7 {[%clk 0:01:30]} 18. c5 {[%clk 0:01:44]}  Qa5 {[%clk 0:01:13]} 19. Qe3 {[%clk 0:01:15]}  Bxg5 {[%clk 0:01:10]} 20. Nxg5 {[%clk 0:01:15]}  Qxc5 {[%clk 0:01:11]} 21. Qd2 {[%clk 0:01:11]}  Qd5 {[%clk 0:00:58]} 22. Qc1 {[%clk 0:01:07]}  Qc5 {[%clk 0:00:54]} 23. Ne4 {[%clk 0:01:05]}  Qc7 {[%clk 0:00:49]} 24. Be2 {[%clk 0:00:54]}  f5 {[%clk 0:00:43]} 25. Qh6 {[%clk 0:00:47]}  Rg6 {[%clk 0:00:20]} 26. Qxh7 {[%clk 0:00:44]}  Kf8 {[%clk 0:00:10]} 27. Qxg6 {[%clk 0:00:36]}  fxe4 {[%clk 0:00:11]} 28. O-O {[%clk 0:00:36]}  Nc5 {[%clk 0:00:10]} 29. Qf6+ {[%clk 0:00:35]}  Kg8 {[%clk 0:00:08]} 30. Rd8+ {[%clk 0:00:35]} 1-0


[Site "https://www.chess.com"]

[Event "Titled Tuesday Blitz March 29 Early 2022"]
[White "Wong, Yinn Long"]
[Black "Xiong, Jeffery"]
[WhiteFideId "5707684"]
[BlackFideId "2047640"]
[WhiteElo "2055"]
[BlackElo "2727"]
[Result "0-1"]
[Round "04"]
[TimeControl "180+1"]
[Date "2022.03.29"]
[WhiteClock "0:00:37"]
[BlackClock "0:01:45"]

1. e4 {[%clk 0:02:59]}  c6 {[%clk 0:03:00]} 2. d3 {[%clk 0:02:58]}  g6 {[%clk 0:02:59]} 3. Nf3 {[%clk 0:02:58]}  Bg7 {[%clk 0:02:59]} 4. g3 {[%clk 0:02:58]}  e5 {[%clk 0:02:55]} 5. Bg2 {[%clk 0:02:58]}  Ne7 {[%clk 0:02:56]} 6. O-O {[%clk 0:02:58]}  O-O {[%clk 0:02:56]} 7. Re1 {[%clk 0:02:58]}  d6 {[%clk 0:02:52]} 8. d4 {[%clk 0:02:52]}  Bg4 {[%clk 0:02:48]} 9. dxe5 {[%clk 0:02:52]}  dxe5 {[%clk 0:02:48]} 10. h3 {[%clk 0:02:51]}  Be6 {[%clk 0:02:46]} 11. b3 {[%clk 0:02:45]}  Qc7 {[%clk 0:02:43]} 12. Ba3 {[%clk 0:02:43]}  a5 {[%clk 0:02:43]} 13. Nc3 {[%clk 0:02:41]}  Rd8 {[%clk 0:02:40]} 14. Qe2 {[%clk 0:02:40]}  Na6 {[%clk 0:02:40]} 15. Ng5 {[%clk 0:02:32]}  Bc8 {[%clk 0:02:40]} 16. Qc4 {[%clk 0:02:32]}  Rf8 {[%clk 0:02:34]} 17. Rad1 {[%clk 0:02:21]}  Bf6 {[%clk 0:02:33]} 18. Bd6 {[%clk 0:02:10]}  Qb6 {[%clk 0:02:34]} 19. Na4 {[%clk 0:01:55]}  Qa7 {[%clk 0:02:33]} 20. Nxf7 {[%clk 0:01:13]}  Rxf7 {[%clk 0:02:33]} 21. Bc5 {[%clk 0:01:00]}  Nxc5 {[%clk 0:02:31]} 22. Rd8+ {[%clk 0:01:01]}  Kg7 {[%clk 0:02:31]} 23. Nxc5 {[%clk 0:01:02]}  b6 {[%clk 0:02:22]} 24. Ne6+ {[%clk 0:00:51]}  Bxe6 {[%clk 0:02:20]} 25. Rxa8 {[%clk 0:00:52]}  Qxa8 {[%clk 0:02:21]} 26. Qxe6 {[%clk 0:00:52]}  Qd8 {[%clk 0:02:18]} 27. Bf3 {[%clk 0:00:52]}  Qd2 {[%clk 0:02:09]} 28. Rd1 {[%clk 0:00:51]}  Qxc2 {[%clk 0:02:09]} 29. Rd7 {[%clk 0:00:48]}  Qxa2 {[%clk 0:02:02]} 30. g4 {[%clk 0:00:48]}  Qa1+ {[%clk 0:01:47]} 31. Kg2 {[%clk 0:00:48]}  Bh4 {[%clk 0:01:47]} 32. Rd2 {[%clk 0:00:37]}  Qc3 {[%clk 0:01:45]} 0-1


[Site "https://www.chess.com"]